[Event "*** Titled Tuesday 3|2 Blitz (Early)"]
[Site "Chess.com"]
[Date "2016.11.01"]
[Round "6"]
[White "Dlugy"]
[Black "TomsKantans"]
[Result "1-0"]
[WhiteElo "2584"]
[BlackElo "2469"]
[TimeControl "180+2"]
[EndTime "12:17:11 PDT"]
[Termination "Dlugy won on time"]

1. d4 {[%clk 0:03:02]} 1... Nf6 {[%clk 0:03:00.6]} 2. Bf4 {[%clk 0:03:03.6]}
2... g6 {[%clk 0:03:00.8]} 3. Nc3 {[%clk 0:03:05.1]} 3... d6 {[%clk 0:03:00.5]}
4. e4 {[%clk 0:03:05.7]} 4... Bg7 {[%clk 0:03:00.7]} 5. Qd2 {[%clk 0:03:07.3]}
5... h6 {[%clk 0:02:56.6]} 6. Nf3 {[%clk 0:03:03.2]} 6... Bg4 {[%clk 0:02:52]}
7. Be2 {[%clk 0:03:04.1]} 7... e6 {[%clk 0:02:50.4]} 8. O-O {[%clk 0:03:04.3]}
8... Nbd7 {[%clk 0:02:50.6]} 9. e5 {[%clk 0:02:44.2]} 9... dxe5 {[%clk
0:02:50.7]} 10. Nxe5 {[%clk 0:02:44.7]} 10... Bxe2 {[%clk 0:02:50.4]} 11. Qxe2
{[%clk 0:02:45.9]} 11... O-O {[%clk 0:02:47.8]} 12. h3 {[%clk 0:02:40.1]} 12...
c6 {[%clk 0:02:42]} 13. Nc4 {[%clk 0:02:38]} 13... Nd5 {[%clk 0:02:40]} 14. Bd6
{[%clk 0:02:38.6]} 14... Re8 {[%clk 0:02:37.2]} 15. Ne4 {[%clk 0:02:37.5]} 15...
b5 {[%clk 0:02:33]} 16. Ne5 {[%clk 0:02:37]} 16... f5 {[%clk 0:02:09.8]} 17. Nd2
{[%clk 0:02:22]} 17... g5 {[%clk 0:00:57.4]} 18. c4 {[%clk 0:01:57.4]} 18... Nf4
{[%clk 0:00:52.7]} 19. Qf3 {[%clk 0:01:51]} 19... Nxe5 {[%clk 0:00:43]} 20. dxe5
{[%clk 0:01:51.5]} 20... Ng6 {[%clk 0:00:33.9]} 21. Rfe1 {[%clk 0:01:43.4]}
21... Nxe5 {[%clk 0:00:34.9]} 22. Bxe5 {[%clk 0:01:44]} 22... Qxd2 {[%clk
0:00:36]} 23. Bxg7 {[%clk 0:01:42.2]} 23... Kxg7 {[%clk 0:00:36.8]} 24. Qxc6
{[%clk 0:01:22.9]} 24... Qxb2 {[%clk 0:00:24.1]} 25. cxb5 {[%clk 0:01:23]} 25...
Qf6 {[%clk 0:00:22]} 26. Rad1 {[%clk 0:01:23]} 26... Rab8 {[%clk 0:00:15.4]} 27.
Rd7+ {[%clk 0:01:21.9]} 27... Kg6 {[%clk 0:00:16.7]} 28. Rxa7 {[%clk 0:01:19.2]}
28... Rbc8 {[%clk 0:00:05.2]} 29. Rc7 {[%clk 0:01:19]} 29... Rxc7 {[%clk
0:00:03.1]} 30. Qxe8+ {[%clk 0:01:20]} 30... Kg7 {[%clk 0:00:03.6]} 31. Rxe6
{[%clk 0:01:15.6]} 1-0

[Event "*** Titled Tuesday 3|2 Blitz (Early)"]
[Site "Chess.com"]
[Date "2016.11.01"]
[Round "6"]
[White "Usurpov"]
[Black "chito89"]
[Result "0-1"]
[WhiteElo "2267"]
[BlackElo "2485"]
[TimeControl "180+2"]
[EndTime "12:17:23 PDT"]
[Termination "chito89 won on time"]

1. e4 {[%clk 0:03:01.9]} 1... c5 {[%clk 0:02:58.3]} 2. Nf3 {[%clk 0:02:56.7]}
2... e6 {[%clk 0:02:59.4]} 3. c3 {[%clk 0:02:57.2]} 3... Nf6 {[%clk 0:02:59]} 4.
e5 {[%clk 0:02:57.3]} 4... Nd5 {[%clk 0:02:59.6]} 5. g3 {[%clk 0:02:58.3]} 5...
Nc6 {[%clk 0:02:55.7]} 6. Bg2 {[%clk 0:02:56.7]} 6... d6 {[%clk 0:02:57]} 7.
exd6 {[%clk 0:02:57.4]} 7... Qxd6 {[%clk 0:02:58.4]} 8. O-O {[%clk 0:02:55.4]}
8... Be7 {[%clk 0:02:55.5]} 9. d4 {[%clk 0:02:54.8]} 9... cxd4 {[%clk
0:02:53.1]} 10. Nxd4 {[%clk 0:02:56.7]} 10... Nxd4 {[%clk 0:02:49.5]} 11. Qxd4
{[%clk 0:02:58.6]} 11... O-O {[%clk 0:02:50.7]} 12. Nd2 {[%clk 0:02:28.5]} 12...
Qc7 {[%clk 0:02:49.8]} 13. Qc4 {[%clk 0:02:05.3]} 13... Qxc4 {[%clk 0:02:41.6]}
14. Nxc4 {[%clk 0:02:07.2]} 14... Rd8 {[%clk 0:02:40.9]} 15. Rd1 {[%clk
0:02:05]} 15... Bd7 {[%clk 0:02:35.1]} 16. Ne3 {[%clk 0:01:53.4]} 16... Ba4
{[%clk 0:02:22.8]} 17. Rd4 {[%clk 0:01:14.4]} 17... Bc6 {[%clk 0:02:21.8]} 18.
Nxd5 {[%clk 0:01:12.7]} 18... exd5 {[%clk 0:02:23.1]} 19. Be3 {[%clk 0:01:12.7]}
19... b5 {[%clk 0:02:08.1]} 20. Rad1 {[%clk 0:01:06.2]} 20... a5 {[%clk
0:01:59.4]} 21. Bxd5 {[%clk 0:01:01.6]} 21... Bxd5 {[%clk 0:01:39.8]} 22. Rxd5
{[%clk 0:01:03.5]} 22... Rxd5 {[%clk 0:01:41]} 23. Rxd5 {[%clk 0:01:04.3]} 23...
Rb8 {[%clk 0:01:42.4]} 24. Rd7 {[%clk 0:00:40.2]} 24... Bf8 {[%clk 0:01:36.4]}
25. Ra7 {[%clk 0:00:31.4]} 25... a4 {[%clk 0:01:35.2]} 26. a3 {[%clk 0:00:27.7]}
26... f6 {[%clk 0:01:35.7]} 27. Kf1 {[%clk 0:00:26.4]} 27... Rd8 {[%clk
0:01:36.2]} 28. Ke2 {[%clk 0:00:20.9]} 28... h5 {[%clk 0:01:31.7]} 29. Rb7
{[%clk 0:00:16.1]} 29... Rd5 {[%clk 0:01:33.1]} 30. Bd4 {[%clk 0:00:16.5]} 30...
h4 {[%clk 0:01:31.6]} 31. g4 {[%clk 0:00:14.6]} 31... h3 {[%clk 0:01:31.7]} 32.
f4 {[%clk 0:00:10.8]} 32... Bd6 {[%clk 0:01:20.6]} 33. Kf3 {[%clk 0:00:11.1]}
33... g5 {[%clk 0:01:22.2]} 34. f5 {[%clk 0:00:06.2]} 34... Bxh2 {[%clk
0:01:21]} 35. Bxf6 {[%clk 0:00:07.2]} 35... Bf4 {[%clk 0:01:21.9]} 0-1

[Event "*** Titled Tuesday 3|2 Blitz (Early)"]
[Site "Chess.com"]
[Date "2016.11.01"]
[Round "6"]
[White "RitvarsReimanis"]
[Black "YuriyKrykun"]
[Result "1-0"]
[WhiteElo "2400"]
[BlackElo "2291"]
[TimeControl "180+2"]
[EndTime "12:17:24 PDT"]
[Termination "RitvarsReimanis won by resignation"]

1. d4 {[%clk 0:02:58.2]} 1... Nf6 {[%clk 0:02:36.8]} 2. c4 {[%clk 0:02:58.7]}
2... g6 {[%clk 0:02:34.6]} 3. f3 {[%clk 0:02:59.6]} 3... Nc6 {[%clk 0:02:33.1]}
4. d5 {[%clk 0:02:58.8]} 4... Ne5 {[%clk 0:02:34.1]} 5. e4 {[%clk 0:03:00.4]}
5... d6 {[%clk 0:02:34.9]} 6. Nc3 {[%clk 0:02:59.1]} 6... Bg7 {[%clk 0:02:34.3]}
7. Be3 {[%clk 0:02:59.5]} 7... O-O {[%clk 0:02:35.3]} 8. h3 {[%clk 0:02:58.9]}
8... c6 {[%clk 0:02:34.5]} 9. f4 {[%clk 0:02:51.3]} 9... Ned7 {[%clk 0:02:35.5]}
10. Nf3 {[%clk 0:02:50.3]} 10... Nc5 {[%clk 0:02:27.9]} 11. Bd3 {[%clk 0:02:46]}
11... cxd5 {[%clk 0:02:25.4]} 12. cxd5 {[%clk 0:02:36.7]} 12... Nxd3+ {[%clk
0:02:22.4]} 13. Qxd3 {[%clk 0:02:37.1]} 13... e6 {[%clk 0:02:23.1]} 14. dxe6
{[%clk 0:02:35.2]} 14... Bxe6 {[%clk 0:02:23.1]} 15. Rd1 {[%clk 0:02:33.6]}
15... d5 {[%clk 0:02:21.3]} 16. exd5 {[%clk 0:02:31.4]} 16... Bf5 {[%clk
0:02:15.7]} 17. Qd2 {[%clk 0:02:28]} 17... Ne4 {[%clk 0:02:13]} 18. Nxe4 {[%clk
0:02:28]} 18... Bxe4 {[%clk 0:02:14.9]} 19. O-O {[%clk 0:02:27.2]} 19... Qd7
{[%clk 0:01:56.7]} 20. Ne5 {[%clk 0:02:15]} 20... Qb5 {[%clk 0:01:56.5]} 21. Qd4
{[%clk 0:01:55.4]} 21... f5 {[%clk 0:01:49.4]} 22. a4 {[%clk 0:01:54.6]} 22...
Qb3 {[%clk 0:01:31.7]} 23. Rd2 {[%clk 0:01:38.7]} 23... Rfd8 {[%clk 0:01:28.9]}
24. d6 {[%clk 0:01:39.3]} 24... Rxd6 {[%clk 0:01:13.1]} 25. Qxd6 {[%clk
0:01:33.6]} 25... Qxe3+ {[%clk 0:01:14.6]} 26. Kh2 {[%clk 0:01:33.5]} 26... Bh6
{[%clk 0:01:13.8]} 27. Qe6+ {[%clk 0:01:27]} 27... Kh8 {[%clk 0:01:14.1]} 28.
Nf7+ {[%clk 0:00:40.3]} 28... Kg7 {[%clk 0:01:13.3]} 29. Qe5+ {[%clk 0:00:39.5]}
29... Kf8 {[%clk 0:00:51.3]} 30. Rd7 {[%clk 0:00:32.4]} 30... Bg7 {[%clk
0:00:36.6]} 31. Qe7+ {[%clk 0:00:30.9]} 31... Kg8 {[%clk 0:00:37.2]} 32. Nh6+
{[%clk 0:00:32.5]} 32... Bxh6 {[%clk 0:00:37.3]} 33. Qf7+ {[%clk 0:00:33]} 1-0

[Event "*** Titled Tuesday 3|2 Blitz (Early)"]
[Site "Chess.com"]
[Date "2016.11.01"]
[Round "6"]
[White "Ginger_GM"]
[Black "Drags95"]
[Result "0-1"]
[WhiteElo "2438"]
[BlackElo "2458"]
[TimeControl "180+2"]
[EndTime "12:18:01 PDT"]
[Termination "Drags95 won by resignation"]

1. d4 {[%clk 0:03:02]} 1... Nf6 {[%clk 0:03:00.4]} 2. c4 {[%clk 0:03:00.1]} 2...
e6 {[%clk 0:03:01]} 3. Nf3 {[%clk 0:02:59.2]} 3... d5 {[%clk 0:03:00.9]} 4. Nc3
{[%clk 0:02:59]} 4... Bb4 {[%clk 0:03:01.5]} 5. Bg5 {[%clk 0:02:58.8]} 5... h6
{[%clk 0:02:59.6]} 6. Bh4 {[%clk 0:02:57.5]} 6... g5 {[%clk 0:02:50.6]} 7. Bg3
{[%clk 0:02:56.9]} 7... dxc4 {[%clk 0:02:52.2]} 8. e3 {[%clk 0:02:48.3]} 8... b5
{[%clk 0:02:51.7]} 9. h4 {[%clk 0:02:45.3]} 9... Ne4 {[%clk 0:02:41.9]} 10. Qc2
{[%clk 0:02:26.7]} 10... Nxg3 {[%clk 0:02:39.1]} 11. fxg3 {[%clk 0:02:27.1]}
11... Bb7 {[%clk 0:02:32.4]} 12. Be2 {[%clk 0:02:17.9]} 12... g4 {[%clk
0:02:22.5]} 13. Ne5 {[%clk 0:02:18.6]} 13... Nd7 {[%clk 0:02:16.8]} 14. O-O-O
{[%clk 0:01:28.8]} 14... Bxc3 {[%clk 0:02:15.1]} 15. Qxc3 {[%clk 0:01:13.7]}
15... Qe7 {[%clk 0:02:10.4]} 16. Qa5 {[%clk 0:00:43.5]} 16... Nxe5 {[%clk
0:02:00.1]} 17. Qxb5+ {[%clk 0:00:39.8]} 17... Nd7 {[%clk 0:00:50.7]} 18. Qxb7
{[%clk 0:00:40.2]} 18... O-O {[%clk 0:00:51.5]} 19. Qc6 {[%clk 0:00:26.3]} 19...
Qd6 {[%clk 0:00:45.7]} 20. Qxc4 {[%clk 0:00:25.1]} 20... Rab8 {[%clk 0:00:46.9]}
21. d5 {[%clk 0:00:23.5]} 21... Ne5 {[%clk 0:00:46.1]} 22. Qc3 {[%clk
0:00:22.7]} 22... exd5 {[%clk 0:00:44.9]} 23. Rd4 {[%clk 0:00:23.6]} 23... c5
{[%clk 0:00:43.7]} 24. Rf4 {[%clk 0:00:24.6]} 24... Rfc8 {[%clk 0:00:26.3]} 25.
Rhf1 {[%clk 0:00:24.8]} 25... d4 {[%clk 0:00:27.2]} 26. Qd2 {[%clk 0:00:21.6]}
26... Qd5 {[%clk 0:00:17.9]} 27. Kb1 {[%clk 0:00:22.9]} 27... Rb7 {[%clk
0:00:11]} 28. e4 {[%clk 0:00:23.6]} 28... Qe6 {[%clk 0:00:09.8]} 29. Rf6 {[%clk
0:00:24.7]} 29... Nc4 {[%clk 0:00:09.6]} 30. Bxc4 {[%clk 0:00:22.4]} 30... Qxc4
{[%clk 0:00:10.8]} 31. Qxh6 {[%clk 0:00:22.3]} 31... Rxb2+ {[%clk 0:00:11.8]}
32. Kxb2 {[%clk 0:00:20.2]} 32... Rb8+ {[%clk 0:00:13.4]} 0-1

[Event "*** Titled Tuesday 3|2 Blitz (Early)"]
[Site "Chess.com"]
[Date "2016.11.01"]
[Round "6"]
[White "Blitzstream"]
[Black "Danirod"]
[Result "0-1"]
[WhiteElo "2527"]
[BlackElo "2488"]
[TimeControl "180+2"]
[EndTime "12:18:03 PDT"]
[Termination "Danirod won by resignation"]

1. d4 {[%clk 0:03:02]} 1... Nf6 {[%clk 0:03:00.1]} 2. Bg5 {[%clk 0:03:01.5]}
2... d5 {[%clk 0:03:01.7]} 3. Bxf6 {[%clk 0:03:01.3]} 3... exf6 {[%clk
0:03:03.6]} 4. e3 {[%clk 0:03:03.2]} 4... Bd6 {[%clk 0:03:02.8]} 5. c4 {[%clk
0:03:03.4]} 5... dxc4 {[%clk 0:03:04.2]} 6. Bxc4 {[%clk 0:03:03.8]} 6... c6
{[%clk 0:03:04.8]} 7. Nd2 {[%clk 0:03:03.5]} 7... O-O {[%clk 0:03:05.9]} 8. Ngf3
{[%clk 0:03:03.6]} 8... Nd7 {[%clk 0:03:07.1]} 9. O-O {[%clk 0:03:04.7]} 9... f5
{[%clk 0:03:08.6]} 10. e4 {[%clk 0:03:01.2]} 10... fxe4 {[%clk 0:03:07.6]} 11.
Nxe4 {[%clk 0:03:03.1]} 11... Be7 {[%clk 0:03:08.5]} 12. Bb3 {[%clk 0:02:54.2]}
12... Nb6 {[%clk 0:03:05]} 13. Ne5 {[%clk 0:02:45.6]} 13... Nd5 {[%clk
0:02:59.8]} 14. Qf3 {[%clk 0:02:45.1]} 14... Be6 {[%clk 0:03:00]} 15. Rfe1
{[%clk 0:02:23.6]} 15... a5 {[%clk 0:02:55.9]} 16. Nc5 {[%clk 0:02:20.4]} 16...
Bxc5 {[%clk 0:02:45.7]} 17. dxc5 {[%clk 0:02:21.5]} 17... a4 {[%clk 0:02:45.9]}
18. Bc4 {[%clk 0:02:22.5]} 18... Qa5 {[%clk 0:02:42.7]} 19. Rac1 {[%clk
0:01:05.8]} 19... Qxc5 {[%clk 0:02:26.3]} 20. Bd3 {[%clk 0:01:02.2]} 20... Qb4
{[%clk 0:02:15.5]} 21. Qh5 {[%clk 0:00:26.1]} 21... h6 {[%clk 0:02:12.3]} 22.
Re4 {[%clk 0:00:20]} 22... Qxb2 {[%clk 0:02:12.3]} 23. Rce1 {[%clk 0:00:20.3]}
23... Nf6 {[%clk 0:02:12.4]} 24. Qh4 {[%clk 0:00:21.4]} 24... Nxe4 {[%clk
0:01:46.4]} 25. Qxe4 {[%clk 0:00:23.3]} 25... f5 {[%clk 0:01:47]} 26. Qh4 {[%clk
0:00:21.9]} 26... Rf6 {[%clk 0:01:41.5]} 27. f4 {[%clk 0:00:19.8]} 27... Qxa2
{[%clk 0:01:34.7]} 28. h3 {[%clk 0:00:20.4]} 28... Qd5 {[%clk 0:01:35.5]} 29.
Re3 {[%clk 0:00:21.3]} 29... a3 {[%clk 0:01:34.4]} 30. Rg3 {[%clk 0:00:22.5]}
30... Kh7 {[%clk 0:01:29.1]} 31. Qh5 {[%clk 0:00:17.8]} 31... a2 {[%clk
0:01:23.7]} 32. Kh2 {[%clk 0:00:18.1]} 32... a1=Q {[%clk 0:01:23.7]} 33. Bc4
{[%clk 0:00:17.6]} 33... Qxc4 {[%clk 0:00:59.7]} 34. Nxc4 {[%clk 0:00:18.5]}
34... Bxc4 {[%clk 0:01:01.6]} 35. h4 {[%clk 0:00:15.4]} 35... Bf7 {[%clk
0:00:57.8]} 36. Qf3 {[%clk 0:00:14.7]} 36... Qe1 {[%clk 0:00:53.6]} 37. h5
{[%clk 0:00:10.9]} 37... Ra1 {[%clk 0:00:52.7]} 38. Rxg7+ {[%clk 0:00:11.2]}
38... Kxg7 {[%clk 0:00:53.8]} 39. Qc3 {[%clk 0:00:10.7]} 39... Qxc3 {[%clk
0:00:54.3]} 0-1

[Event "*** Titled Tuesday 3|2 Blitz (Early)"]
[Site "Chess.com"]
[Date "2016.11.01"]
[Round "6"]
[White "Aygehovit1992"]
[Black "LawrenceTrent"]
[Result "0-1"]
[WhiteElo "2435"]
[BlackElo "2534"]
[TimeControl "180+2"]
[EndTime "12:18:06 PDT"]
[Termination "LawrenceTrent won by resignation"]

1. e4 {[%clk 0:03:01.9]} 1... e5 {[%clk 0:02:52.1]} 2. Nf3 {[%clk 0:02:56.6]}
2... Nc6 {[%clk 0:02:53]} 3. Bb5 {[%clk 0:02:58.2]} 3... a6 {[%clk 0:02:53.1]}
4. Ba4 {[%clk 0:02:59.2]} 4... Nf6 {[%clk 0:02:53.9]} 5. Bxc6 {[%clk 0:03:00.1]}
5... dxc6 {[%clk 0:02:54.4]} 6. d3 {[%clk 0:03:01.6]} 6... Bd6 {[%clk
0:02:54.8]} 7. Nbd2 {[%clk 0:03:01.6]} 7... Nd7 {[%clk 0:02:55.3]} 8. Nc4 {[%clk
0:03:02.1]} 8... b5 {[%clk 0:02:51.4]} 9. Nxd6+ {[%clk 0:03:01.7]} 9... cxd6
{[%clk 0:02:52.2]} 10. d4 {[%clk 0:03:03.6]} 10... O-O {[%clk 0:02:51.5]} 11.
O-O {[%clk 0:03:04.7]} 11... Qe7 {[%clk 0:02:49.7]} 12. Re1 {[%clk 0:03:04.4]}
12... f6 {[%clk 0:02:44.1]} 13. b3 {[%clk 0:02:53.7]} 13... Bb7 {[%clk
0:02:36.2]} 14. Ba3 {[%clk 0:02:22.6]} 14... c5 {[%clk 0:02:36.7]} 15. dxc5
{[%clk 0:02:12.9]} 15... dxc5 {[%clk 0:02:15.7]} 16. Nh4 {[%clk 0:02:11.4]}
16... g6 {[%clk 0:02:12.9]} 17. Qg4 {[%clk 0:02:11.3]} 17... Kh8 {[%clk
0:01:11.3]} 18. Rad1 {[%clk 0:02:08.3]} 18... Rf7 {[%clk 0:01:07.5]} 19. Rd3
{[%clk 0:01:57.1]} 19... Nf8 {[%clk 0:01:08.2]} 20. Red1 {[%clk 0:01:54]} 20...
b4 {[%clk 0:01:07.8]} 21. Bc1 {[%clk 0:01:52.5]} 21... Re8 {[%clk 0:01:01.5]}
22. Rd6 {[%clk 0:00:57.3]} 22... Bc8 {[%clk 0:00:57.3]} 23. Qg3 {[%clk
0:00:41.8]} 23... Ne6 {[%clk 0:00:56.2]} 24. Be3 {[%clk 0:00:27.2]} 24... Nd4
{[%clk 0:00:55.6]} 25. R6xd4 {[%clk 0:00:13.6]} 25... cxd4 {[%clk 0:00:55.6]}
26. Bd2 {[%clk 0:00:12.9]} 26... a5 {[%clk 0:00:54.1]} 27. a3 {[%clk 0:00:09.8]}
27... bxa3 {[%clk 0:00:54.6]} 28. Bxa5 {[%clk 0:00:10.9]} 28... Qc5 {[%clk
0:00:50.1]} 29. b4 {[%clk 0:00:04.4]} 29... Qxc2 {[%clk 0:00:48]} 30. Rf1 {[%clk
0:00:04.9]} 30... Qxe4 {[%clk 0:00:48.4]} 31. Nf3 {[%clk 0:00:03.7]} 31... Bb7
{[%clk 0:00:48.7]} 32. Qh3 {[%clk 0:00:04]} 32... a2 {[%clk 0:00:46.2]} 33. b5
{[%clk 0:00:04.6]} 33... Qb1 {[%clk 0:00:45.7]} 34. Nd2 {[%clk 0:00:04.7]} 34...
Qxf1+ {[%clk 0:00:45.2]} 35. Nxf1 {[%clk 0:00:06.5]} 35... a1=Q {[%clk
0:00:46.4]} 0-1

[Event "*** Titled Tuesday 3|2 Blitz (Early)"]
[Site "Chess.com"]
[Date "2016.11.01"]
[Round "6"]
[White "MFBerna"]
[Black "Mbneu"]
[Result "1-0"]
[WhiteElo "2189"]
[BlackElo "2130"]
[TimeControl "180+2"]
[EndTime "12:18:09 PDT"]
[Termination "MFBerna won by resignation"]

1. e4 {[%clk 0:03:02]} 1... e5 {[%clk 0:02:59.9]} 2. Nf3 {[%clk 0:03:02.6]} 2...
Nc6 {[%clk 0:03:01.4]} 3. Bb5 {[%clk 0:03:03.4]} 3... Bc5 {[%clk 0:03:02.7]} 4.
O-O {[%clk 0:03:04.1]} 4... d6 {[%clk 0:03:01.8]} 5. c3 {[%clk 0:03:03]} 5... a6
{[%clk 0:03:02.3]} 6. Ba4 {[%clk 0:03:03.6]} 6... Ba7 {[%clk 0:03:01.8]} 7. d4
{[%clk 0:03:00.3]} 7... exd4 {[%clk 0:03:03.2]} 8. cxd4 {[%clk 0:03:02.2]} 8...
Bg4 {[%clk 0:03:01.7]} 9. d5 {[%clk 0:02:53]} 9... b5 {[%clk 0:03:01.3]} 10.
dxc6 {[%clk 0:02:54]} 10... bxa4 {[%clk 0:02:58.5]} 11. h3 {[%clk 0:02:52]}
11... Bc8 {[%clk 0:02:58.1]} 12. Nc3 {[%clk 0:02:47.5]} 12... Ne7 {[%clk
0:02:55.5]} 13. Qxa4 {[%clk 0:02:26.9]} 13... O-O {[%clk 0:02:52.7]} 14. Nd5
{[%clk 0:02:25.7]} 14... Rb8 {[%clk 0:02:24.4]} 15. Bg5 {[%clk 0:02:18.1]} 15...
f6 {[%clk 0:02:23.3]} 16. Qc4 {[%clk 0:02:10.7]} 16... Kh8 {[%clk 0:02:18]} 17.
Be3 {[%clk 0:01:37.1]} 17... Bxe3 {[%clk 0:02:12.2]} 18. fxe3 {[%clk 0:01:38.3]}
18... Rxb2 {[%clk 0:02:02.9]} 19. Rab1 {[%clk 0:01:31.8]} 19... Nxd5 {[%clk
0:01:59.3]} 20. Qxd5 {[%clk 0:01:15.3]} 20... Rb5 {[%clk 0:01:25.9]} 21. Rxb5
{[%clk 0:01:14.5]} 21... axb5 {[%clk 0:01:27.8]} 22. Nd4 {[%clk 0:01:02.3]}
22... Re8 {[%clk 0:01:06.4]} 23. Nf3 {[%clk 0:00:30.1]} 23... Qe7 {[%clk
0:00:57.2]} 24. Rb1 {[%clk 0:00:24.9]} 24... Ba6 {[%clk 0:00:56.2]} 25. Nd4
{[%clk 0:00:15.2]} 25... Qxe4 {[%clk 0:00:45.1]} 26. Qxe4 {[%clk 0:00:16.1]}
26... Rxe4 {[%clk 0:00:45.4]} 27. a4 {[%clk 0:00:18]} 27... Rxe3 {[%clk
0:00:35.3]} 28. axb5 {[%clk 0:00:19]} 28... Bc8 {[%clk 0:00:36.2]} 29. Ra1
{[%clk 0:00:19.1]} 29... Kg8 {[%clk 0:00:34.6]} 30. Ra8 {[%clk 0:00:19.9]} 30...
Re8 {[%clk 0:00:34.9]} 31. Ne6 {[%clk 0:00:12]} 31... Kf7 {[%clk 0:00:17.1]} 32.
Nxc7 {[%clk 0:00:11.6]} 32... Re1+ {[%clk 0:00:16.7]} 33. Kf2 {[%clk 0:00:12.6]}
1-0

[Event "*** Titled Tuesday 3|2 Blitz (Early)"]
[Site "Chess.com"]
[Date "2016.11.01"]
[Round "6"]
[White "swayamsm"]
[Black "platy3"]
[Result "1-0"]
[WhiteElo "2657"]
[BlackElo "2687"]
[TimeControl "180+2"]
[EndTime "12:18:34 PDT"]
[Termination "swayamsm won by resignation"]

1. d4 {[%clk 0:03:01.9]} 1... Nf6 {[%clk 0:03:01.2]} 2. c4 {[%clk 0:03:02.9]}
2... e6 {[%clk 0:03:02.9]} 3. Nc3 {[%clk 0:03:03.3]} 3... Bb4 {[%clk 0:03:03.9]}
4. f3 {[%clk 0:03:02.1]} 4... c5 {[%clk 0:03:04]} 5. d5 {[%clk 0:03:02.9]} 5...
O-O {[%clk 0:03:05.1]} 6. e4 {[%clk 0:03:03.2]} 6... b5 {[%clk 0:03:06.6]} 7.
Nh3 {[%clk 0:02:56.2]} 7... bxc4 {[%clk 0:02:51.9]} 8. Bxc4 {[%clk 0:02:58.1]}
8... Nxd5 {[%clk 0:02:52.5]} 9. Bxd5 {[%clk 0:02:56.5]} 9... exd5 {[%clk
0:02:52.2]} 10. Qxd5 {[%clk 0:02:58]} 10... Nc6 {[%clk 0:02:49.8]} 11. O-O
{[%clk 0:02:55.6]} 11... Bb7 {[%clk 0:02:38.6]} 12. Bg5 {[%clk 0:02:53.5]} 12...
Qc7 {[%clk 0:02:34.8]} 13. Bf4 {[%clk 0:02:51.1]} 13... Qb6 {[%clk 0:02:28.6]}
14. Qh5 {[%clk 0:02:31.7]} 14... Nd4 {[%clk 0:02:25.3]} 15. Nd5 {[%clk
0:02:27.1]} 15... Bxd5 {[%clk 0:02:11.6]} 16. Qxd5 {[%clk 0:02:29]} 16... Qe6
{[%clk 0:02:06.1]} 17. Qxe6 {[%clk 0:02:23.1]} 17... dxe6 {[%clk 0:02:07.2]} 18.
Rfd1 {[%clk 0:02:21.2]} 18... Rfd8 {[%clk 0:02:06.4]} 19. Kf2 {[%clk 0:02:22.3]}
19... Ba5 {[%clk 0:02:04.1]} 20. Rac1 {[%clk 0:02:17.5]} 20... Bb6 {[%clk
0:02:03.8]} 21. Be3 {[%clk 0:02:15.3]} 21... Nc6 {[%clk 0:01:46.8]} 22. Rxd8+
{[%clk 0:02:11.8]} 22... Nxd8 {[%clk 0:01:48]} 23. Bxc5 {[%clk 0:01:54.6]} 23...
Rc8 {[%clk 0:01:48.1]} 24. Bxb6 {[%clk 0:01:56]} 24... Rxc1 {[%clk 0:01:48.2]}
25. Bxd8 {[%clk 0:01:57.6]} 25... Rc2+ {[%clk 0:01:49.7]} 26. Kg3 {[%clk
0:01:53.4]} 26... Rxb2 {[%clk 0:01:50.6]} 27. a3 {[%clk 0:01:51.8]} 27... Kf8
{[%clk 0:01:47.3]} 28. Nf4 {[%clk 0:01:47]} 28... Ra2 {[%clk 0:01:42.5]} 29. Ba5
{[%clk 0:01:43.8]} 29... g6 {[%clk 0:01:36.7]} 30. Bb4+ {[%clk 0:01:44.4]} 30...
Ke8 {[%clk 0:01:38.2]} 31. e5 {[%clk 0:01:40.2]} 31... Kd7 {[%clk 0:01:39]} 32.
Nh3 {[%clk 0:01:36]} 32... h6 {[%clk 0:01:39.1]} 33. Nf2 {[%clk 0:01:33]} 33...
a5 {[%clk 0:01:39.4]} 34. Bxa5 {[%clk 0:01:25.2]} 34... Rxa3 {[%clk 0:01:40]}
35. Bb4 {[%clk 0:01:20.7]} 35... Ra4 {[%clk 0:01:40.7]} 36. Bd6 {[%clk
0:01:21.4]} 36... Kc6 {[%clk 0:01:32.3]} 37. Ne4 {[%clk 0:01:19.8]} 37... Ra7
{[%clk 0:01:31.4]} 38. Nf6 {[%clk 0:01:12.7]} 38... Ra8 {[%clk 0:01:32.4]} 39.
Ng4 {[%clk 0:01:10.7]} 39... Rh8 {[%clk 0:01:31.6]} 40. Be7 {[%clk 0:01:07.6]}
40... Kd5 {[%clk 0:01:30.4]} 41. Bf6 {[%clk 0:01:06.4]} 41... Rh7 {[%clk
0:01:31.5]} 42. h4 {[%clk 0:01:05.7]} 42... Kd4 {[%clk 0:01:32.2]} 43. Kf4
{[%clk 0:00:59.4]} 43... Kd5 {[%clk 0:01:33.4]} 44. Ne3+ {[%clk 0:00:53.9]}
44... Kd4 {[%clk 0:01:34.6]} 45. Nc2+ {[%clk 0:00:54.4]} 45... Kc3 {[%clk
0:01:35.6]} 46. Ne3 {[%clk 0:00:53]} 46... Kd4 {[%clk 0:01:37.1]} 47. Ng4 {[%clk
0:00:50.2]} 47... Kd3 {[%clk 0:01:38]} 48. Nf2+ {[%clk 0:00:50.4]} 48... Kd4
{[%clk 0:01:38.4]} 49. Ne4 {[%clk 0:00:52.3]} 49... Kd5 {[%clk 0:01:39.5]} 50.
Ke3 {[%clk 0:00:48.3]} 50... Kc4 {[%clk 0:01:39.8]} 51. Nd6+ {[%clk 0:00:44.9]}
51... Kd5 {[%clk 0:01:41.2]} 52. Kd3 {[%clk 0:00:45.7]} 52... Kc5 {[%clk
0:01:41.3]} 53. Ke4 {[%clk 0:00:42.9]} 53... Kc6 {[%clk 0:01:42.5]} 54. Kd4
{[%clk 0:00:43]} 54... Kb6 {[%clk 0:01:43]} 55. Kc4 {[%clk 0:00:41.9]} 55... Kc6
{[%clk 0:01:44.5]} 56. Ne4 {[%clk 0:00:40.2]} 56... Kb6 {[%clk 0:01:44.7]} 57.
Nc5 {[%clk 0:00:41.4]} 57... Kc6 {[%clk 0:01:45.9]} 58. Kd4 {[%clk 0:00:42.9]}
58... Kc7 {[%clk 0:01:41.9]} 59. Kc3 {[%clk 0:00:43.1]} 59... Kb6 {[%clk
0:01:32.7]} 60. Nd7+ {[%clk 0:00:43.6]} 1-0